Workbook

Sheet Tables 8-2, 8-3
A1: Aggregate Planning (Chapter 8-9)
A3: Demand Forecast
A5: Month | B5: Demand Forecast
A6: January | B6: 1600
A7: February | B7: 3000
A8: March | B8: 3200
A9: April | B9: 3800
A10: May | B10: 2200
A11: June | B11: 2200
A13: Costs
A15: Item | B15: Cost
A16: Materials cost/unit | B16: 10
A17: Inventory holding cost/unit/month | B17: 2
A18: Marginal cost of stockout/unit/month | B18: 5
A19: Hiring and training cost/worker | B19: 300
A20: Layoff cost/worker | B20: 500
A21: Labor hours required/unit | B21: 4
A22: Regular time cost/hour | B22: 4
A23: Over time cost/hour | B23: 6
A24: Marginal subcontracting cost/unit | B24: 30

Sheet Planning
A1: Aggregate Plan Decision Variables | M1: Constraints
B2: Ht | C2: Lt | D2: Wt | E2: Ot | F2: It | G2: St | H2: Ct | I2: Pt
A3: Period | B3: # Hired | C3: # Laid off | D3: # Workforce | E3: Overtime | F3: Inventory | G3: Stockout | H3: Subcontract | I3: Production | J3: Demand | K3: Price | M3: Workforce | N3: Capacity | O3: Inventory | P3: Overtime
A4: 0 | B4: 0 | C4: 0 | D4: 80 | E4: 0 | F4: 1000 | G4: 0 | H4: 0
A5: 1 | B5: 0 | C5: 14 | D5: 66 | E5: 0 | F5: 2040 | G5: 0 | H5: 0 | I5: 2640 | J5: =IF($E$24=0,'Tables 8-2, 8-3'!B6,IF(Planning!A5=Planning!$E$25,'Tables 8-2, 8-3'!B6*(1+Planning!$H$24)+Planning!$H$25*('Tables 8-2, 8-3'!B7+'Tables 8-2, 8-3'!B8),IF(Planning!A5<=2+Planning!$E$25,IF(A5>$E$25,(1-Planning!$H$25)*'Tables 8-2, 8-3'!B6,'Tables 8-2, 8-3'!B6),'Tables 8-2, 8-3'!B6))) -> 1600 | K5: =IF($E$24=1,IF(A5=$E$25,$H$23-1,$H$23),$H$23) -> 40 | M5: =+D5-D4-B5+C5 -> 3.868620979e-10 | N5: =40*D5+(E5/4)-I5 -> 0 | O5: =+F4-G4+I5+H5-J5-F5+G5 -> 2.273736754e-13 | P5: =-E5+10*D5 -> 660
A6: 2 | B6: 0 | C6: 0 | D6: 66 | E6: 0 | F6: 1680 | G6: 0 | H6: 0 | I6: 2640 | J6: =IF($E$24=0,'Tables 8-2, 8-3'!B7,IF(Planning!A6=Planning!$E$25,'Tables 8-2, 8-3'!B7*(1+Planning!$H$24)+Planning!$H$25*('Tables 8-2, 8-3'!B8+'Tables 8-2, 8-3'!B9),IF(Planning!A6<=2+Planning!$E$25,IF(A6>$E$25,(1-Planning!$H$25)*'Tables 8-2, 8-3'!B7,'Tables 8-2, 8-3'!B7),'Tables 8-2, 8-3'!B7))) -> 3000 | K6: 40 | M6: -1.421085472e-14 | N6: 0 | O6: 6.821210263e-13 | P6: 660
A7: 3 | B7: 0 | C7: 0 | D7: 66 | E7: 0 | F7: 1120 | G7: 8.205256688e-08 | H7: 0 | I7: 2640 | J7: =IF($E$24=0,'Tables 8-2, 8-3'!B8,IF(Planning!A7=Planning!$E$25,'Tables 8-2, 8-3'!B8*(1+Planning!$H$24)+Planning!$H$25*('Tables 8-2, 8-3'!B9+'Tables 8-2, 8-3'!B10),IF(Planning!A7<=2+Planning!$E$25,IF(A7>$E$25,(1-Planning!$H$25)*'Tables 8-2, 8-3'!B8,'Tables 8-2, 8-3'!B8),'Tables 8-2, 8-3'!B8))) -> 3200 | K7: 40 | M7: 0 | N7: 0 | O7: 1.064700097e-08 | P7: 660
A8: 4 | B8: 3.293529025e-07 | C8: 0 | D8: 66.00000033 | E8: 0 | F8: 4.345892627e-09 | G8: 1260.000026 | H8: 39.9999604 | I8: 2640.000013 | J8: =IF($E$24=0,'Tables 8-2, 8-3'!B9,IF(Planning!A8=Planning!$E$25,'Tables 8-2, 8-3'!B9*(1+Planning!$H$24)+Planning!$H$25*('Tables 8-2, 8-3'!B10+'Tables 8-2, 8-3'!B11),IF(Planning!A8<=2+Planning!$E$25,IF(A8>$E$25,(1-Planning!$H$25)*'Tables 8-2, 8-3'!B9,'Tables 8-2, 8-3'!B9),'Tables 8-2, 8-3'!B9))) -> 5060 | K8: 39 | M8: -2.021095575e-15 | N8: 0 | O8: 0 | P8: 660.0000033
A9: 5 | B9: 0 | C9: 0 | D9: 66.00000033 | E9: 0 | F9: 1.043001474e-08 | G9: 380.0000132 | H9: 0 | I9: 2640.000013 | J9: =IF($E$24=0,'Tables 8-2, 8-3'!B10,IF(Planning!A9=Planning!$E$25,'Tables 8-2, 8-3'!B10*(1+Planning!$H$24)+Planning!$H$25*('Tables 8-2, 8-3'!B11+'Tables 8-2, 8-3'!B12),IF(Planning!A9<=2+Planning!$E$25,IF(A9>$E$25,(1-Planning!$H$25)*'Tables 8-2, 8-3'!B10,'Tables 8-2, 8-3'!B10),'Tables 8-2, 8-3'!B10))) -> 1760 | K9: 40 | M9: 0 | N9: 0 | O9: 9.094947018e-13 | P9: 660.0000033
A10: 6 | B10: 0 | C10: 0 | D10: 66.00000033 | E10: 0 | F10: 500 | G10: 0 | H10: 0 | I10: 2640.000013 | J10: =IF($E$24=0,'Tables 8-2, 8-3'!B11,IF(Planning!A10=Planning!$E$25,'Tables 8-2, 8-3'!B11*(1+Planning!$H$24)+Planning!$H$25*('Tables 8-2, 8-3'!B12+'Tables 8-2, 8-3'!B13),IF(Planning!A10<=2+Planning!$E$25,IF(A10>$E$25,(1-Planning!$H$25)*'Tables 8-2, 8-3'!B11,'Tables 8-2, 8-3'!B11),'Tables 8-2, 8-3'!B11))) -> 1760 | K10: 40 | M10: -2.117417353e-12 | N10: 0 | O10: 4.547473509e-13 | P10: 660.0000033
E11: =AVERAGE(E4:E10) -> 0 | F11: =AVERAGE(F4:F10) -> 905.7142857 | G11: =AVERAGE(G4:G10) -> 234.28572 | H11: =AVERAGE(H4:H10) -> 5.714280057
A12: Aggregate Plan Costs
A14: Period | B14: Hiring | C14: Lay off | D14: Regular time | E14: Overtime | F14: Inventory | G14: Stockout | H14: Subcontract | I14: Material
A15: 1 | B15: =+'Tables 8-2, 8-3'!$B$19*B5 -> 0 | C15: =+C5*'Tables 8-2, 8-3'!$B$20 -> 7000 | D15: =+D5*'Tables 8-2, 8-3'!$B$22*8*20 -> 42240 | E15: =+E5*'Tables 8-2, 8-3'!$B$23 -> 0 | F15: =+F5*'Tables 8-2, 8-3'!$B$17 -> 4080 | G15: =+G5*'Tables 8-2, 8-3'!$B$18 -> 0 | H15: =+H5*'Tables 8-2, 8-3'!$B$24 -> 0 | I15: =I5*'Tables 8-2, 8-3'!$B$16 -> 26400
A16: 2 | B16: =+'Tables 8-2, 8-3'!$B$19*B6 -> 0 | C16: =+C6*'Tables 8-2, 8-3'!$B$20 -> 0 | D16: =+D6*'Tables 8-2, 8-3'!$B$22*8*20 -> 42240 | E16: =+E6*'Tables 8-2, 8-3'!$B$23 -> 0 | F16: =+F6*'Tables 8-2, 8-3'!$B$17 -> 3360 | G16: =+G6*'Tables 8-2, 8-3'!$B$18 -> 0 | H16: =+H6*'Tables 8-2, 8-3'!$B$24 -> 0 | I16: =I6*'Tables 8-2, 8-3'!$B$16 -> 26400
A17: 3 | B17: =+'Tables 8-2, 8-3'!$B$19*B7 -> 0 | C17: =+C7*'Tables 8-2, 8-3'!$B$20 -> 0 | D17: =+D7*'Tables 8-2, 8-3'!$B$22*8*20 -> 42240 | E17: =+E7*'Tables 8-2, 8-3'!$B$23 -> 0 | F17: =+F7*'Tables 8-2, 8-3'!$B$17 -> 2240 | G17: =+G7*'Tables 8-2, 8-3'!$B$18 -> 4.102628344e-07 | H17: =+H7*'Tables 8-2, 8-3'!$B$24 -> 0 | I17: =I7*'Tables 8-2, 8-3'!$B$16 -> 26400
A18: 4 | B18: =+'Tables 8-2, 8-3'!$B$19*B8 -> 9.880587076e-05 | C18: =+C8*'Tables 8-2, 8-3'!$B$20 -> 0 | D18: =+D8*'Tables 8-2, 8-3'!$B$22*8*20 -> 42240.00021 | E18: =+E8*'Tables 8-2, 8-3'!$B$23 -> 0 | F18: =+F8*'Tables 8-2, 8-3'!$B$17 -> 8.691785254e-09 | G18: =+G8*'Tables 8-2, 8-3'!$B$18 -> 6300.000132 | H18: =+H8*'Tables 8-2, 8-3'!$B$24 -> 1199.998812 | I18: =I8*'Tables 8-2, 8-3'!$B$16 -> 26400.00013
A19: 5 | B19: =+'Tables 8-2, 8-3'!$B$19*B9 -> 0 | C19: =+C9*'Tables 8-2, 8-3'!$B$20 -> 0 | D19: =+D9*'Tables 8-2, 8-3'!$B$22*8*20 -> 42240.00021 | E19: =+E9*'Tables 8-2, 8-3'!$B$23 -> 0 | F19: =+F9*'Tables 8-2, 8-3'!$B$17 -> 2.086002948e-08 | G19: =+G9*'Tables 8-2, 8-3'!$B$18 -> 1900.000066 | H19: =+H9*'Tables 8-2, 8-3'!$B$24 -> 0 | I19: =I9*'Tables 8-2, 8-3'!$B$16 -> 26400.00013
A20: 6 | B20: =+'Tables 8-2, 8-3'!$B$19*B10 -> 0 | C20: =+C10*'Tables 8-2, 8-3'!$B$20 -> 0 | D20: =+D10*'Tables 8-2, 8-3'!$B$22*8*20 -> 42240.00021 | E20: =+E10*'Tables 8-2, 8-3'!B23 -> 0 | F20: =+F10*'Tables 8-2, 8-3'!$B$17 -> 1000 | G20: =+G10*'Tables 8-2, 8-3'!$B$18 -> 0 | H20: =+H10*'Tables 8-2, 8-3'!$B$24 -> 0 | I20: =I10*'Tables 8-2, 8-3'!$B$16 -> 26400.00013
A22: Total Cost = | C22: =+SUM(B15:I20) -> 438920.0001
F23: Base Price | H23: 40
A24: Total Revenue = | C24: =SUMPRODUCT(J5:J10,K5:K10) -> 650140 | D24: Promote? (0/1) | E24: 1 | F24: Consumption | H24: 0.1
A25: Profit = | C25: =C24-C22 -> 211219.9999 | D25: Month (1/4) | E25: 4 | F25: Forward buy | H25: 0.2

Sheet Sheet2
A1: Aggregate Plan
A3: Period | B3: # Hired | C3: # Laid off | D3: # Workforce | E3: over time | F3: Inventory | G3: Stockout | H3: Subcontract | I3: Production | J3: Demand
A4: 0 | B4: 0 | C4: 0 | D4: 80 | F4: 1000 | G4: 0 | H4: 0
A5: 1 | B5: 0 | C5: 18 | D5: 62 | E5: 0 | F5: 1880 | G5: 0 | H5: 0 | I5: 2480 | J5: 1600
A6: 2 | B6: 0 | C6: 0 | D6: 62 | E6: 0 | F6: 1360 | G6: 0 | H6: 0 | I6: 2480 | J6: 3000
A7: 3 | B7: 0 | C7: 0 | D7: 62 | E7: 620 | F7: 795 | G7: 0 | H7: 0 | I7: 2635 | J7: 3200
A8: 4 | B8: 0 | C8: 0 | D8: 62 | E8: 620 | F8: 0 | G8: 370 | H8: 0 | I8: 2635 | J8: 3800
A9: 5 | B9: 0 | C9: 0 | D9: 62 | E9: 620 | F9: 65 | G9: 0 | H9: 0 | I9: 2635 | J9: 2200
A10: 6 | B10: 0 | C10: 0 | D10: 62 | E10: 620 | F10: 500 | G10: 0 | H10: 0 | I10: 2635 | J10: 2200
A12: Aggregate Plan Costs
A14: Period | B14: Hiring | C14: Lay off | D14: Regular time | E14: Over time | F14: Inventory | G14: Stockout | H14: Subcontract
A15: 1 | B15: =+'Tables 8-2, 8-3'!$B$19*Sheet2!B5 -> 0 | C15: =+C5*'Tables 8-2, 8-3'!$B$20 -> 9000 | D15: =+D5*'Tables 8-2, 8-3'!$B$22*8*20 -> 39680 | E15: =+E5*'Tables 8-2, 8-3'!B23 -> 0 | F15: =+F5*'Tables 8-2, 8-3'!$B$17 -> 3760 | G15: =+G5*'Tables 8-2, 8-3'!$B$18 -> 0 | H15: =+H5*'Tables 8-2, 8-3'!$B$24 -> 0
A16: 2 | B16: =+'Tables 8-2, 8-3'!$B$19*Sheet2!B6 -> 0 | C16: =+C6*'Tables 8-2, 8-3'!$B$20 -> 0 | D16: =+D6*'Tables 8-2, 8-3'!$B$22*8*20 -> 39680 | E16: =+E6*'Tables 8-2, 8-3'!B24 -> 0 | F16: =+F6*'Tables 8-2, 8-3'!$B$17 -> 2720 | G16: =+G6*'Tables 8-2, 8-3'!$B$18 -> 0 | H16: =+H6*'Tables 8-2, 8-3'!$B$24 -> 0
A17: 3 | B17: =+'Tables 8-2, 8-3'!$B$19*Sheet2!B7 -> 0 | C17: =+C7*'Tables 8-2, 8-3'!$B$20 -> 0 | D17: =+D7*'Tables 8-2, 8-3'!$B$22*8*20 -> 39680 | E17: =+E7*'Tables 8-2, 8-3'!B25 -> 0 | F17: =+F7*'Tables 8-2, 8-3'!$B$17 -> 1590 | G17: =+G7*'Tables 8-2, 8-3'!$B$18 -> 0 | H17: =+H7*'Tables 8-2, 8-3'!$B$24 -> 0
A18: 4 | B18: =+'Tables 8-2, 8-3'!$B$19*Sheet2!B8 -> 0 | C18: =+C8*'Tables 8-2, 8-3'!$B$20 -> 0 | D18: =+D8*'Tables 8-2, 8-3'!$B$22*8*20 -> 39680 | E18: =+E8*'Tables 8-2, 8-3'!B26 -> 0 | F18: =+F8*'Tables 8-2, 8-3'!$B$17 -> 0 | G18: =+G8*'Tables 8-2, 8-3'!$B$18 -> 1850 | H18: =+H8*'Tables 8-2, 8-3'!$B$24 -> 0
A19: 5 | B19: =+'Tables 8-2, 8-3'!$B$19*Sheet2!B9 -> 0 | C19: =+C9*'Tables 8-2, 8-3'!$B$20 -> 0 | D19: =+D9*'Tables 8-2, 8-3'!$B$22*8*20 -> 39680 | E19: =+E9*'Tables 8-2, 8-3'!B27 -> 0 | F19: =+F9*'Tables 8-2, 8-3'!$B$17 -> 130 | G19: =+G9*'Tables 8-2, 8-3'!$B$18 -> 0 | H19: =+H9*'Tables 8-2, 8-3'!$B$24 -> 0
A20: 6 | B20: =+'Tables 8-2, 8-3'!$B$19*Sheet2!B10 -> 0 | C20: =+C10*'Tables 8-2, 8-3'!$B$20 -> 0 | D20: =+D10*'Tables 8-2, 8-3'!$B$22*8*20 -> 39680 | E20: =+E10*'Tables 8-2, 8-3'!B28 -> 0 | F20: =+F10*'Tables 8-2, 8-3'!$B$17 -> 1000 | G20: =+G10*'Tables 8-2, 8-3'!$B$18 -> 0 | H20: =+H10*'Tables 8-2, 8-3'!$B$24 -> 0
A22: Total Cost = | C22: =+SUM(B15:H20) -> 258130

Sheet Sheet3
A1: Aggregate Plan Decision Variables | M1: Constraints
A3: Period | B3: # Hired | C3: # Laid off | D3: # Workforce | E3: Overtime | F3: Inventory | G3: Stockout | H3: Subcontract | I3: Production | J3: Demand | M3: Workforce | N3: Production | O3: Inventory | P3: Over time
A4: 0 | B4: 0 | C4: 0 | D4: 80 | E4: 0 | F4: 1000 | G4: 0 | H4: 0
A5: 1 | B5: 0 | C5: 28.75 | D5: 51.25 | E5: 0 | F5: 1450 | G5: 0 | H5: 0 | I5: 2050 | J5: 1600 | M5: =+D5-D4-B5+C5 -> 0 | N5: =40*D5+(E5/4)-I5 -> 0 | O5: =+F4-G4+I5+H5-J5-F5+G5 -> 0 | P5: =-E5+10*D5 -> 512.5
A6: 2 | B6: 0 | C6: 0 | D6: 51.25 | E6: 0 | F6: 500 | G6: 0 | H6: 0 | I6: 2050 | J6: 3000 | M6: 0 | N6: 0 | O6: 7.389644452e-13 | P6: 512.5
A7: 3 | B7: 16.25 | C7: 0 | D7: 67.5 | E7: 0 | F7: 0 | G7: 0 | H7: 0 | I7: 2700 | J7: 3200 | M7: 0 | N7: 0 | O7: -9.094947018e-13 | P7: 675
A8: 4 | B8: 0 | C8: 0 | D8: 67.5 | E8: 0 | F8: 0 | G8: 500 | H8: 600 | I8: 2700 | J8: 3800 | M8: 0 | N8: 0 | O8: 9.094947018e-13 | P8: 675
A9: 5 | B9: 0 | C9: 0 | D9: 67.5 | E9: 0 | F9: 0 | G9: 0 | H9: 0 | I9: 2700 | J9: 2200 | M9: 0 | N9: 0 | O9: 0 | P9: 675
A10: 6 | B10: 0 | C10: 0 | D10: 67.5 | E10: 0 | F10: 500 | G10: 0 | H10: 0 | I10: 2700 | J10: 2200 | M10: 0 | N10: 0 | O10: 0 | P10: 675
A12: Aggregate Plan Costs
A14: Period | B14: Hiring | C14: Lay off | D14: Regular time | E14: Over time | F14: Inventory | G14: Stockout | H14: Subcontract | I14: Material
A15: 1 | B15: =+'Tables 8-2, 8-3'!$B$19*Sheet2!B5 -> 0 | C15: =+C5*'Tables 8-2, 8-3'!$B$20 -> 14375 | D15: =+D5*'Tables 8-2, 8-3'!$B$22*8*20 -> 32800 | E15: =+E5*'Tables 8-2, 8-3'!$B$23 -> 0 | F15: =+F5*'Tables 8-2, 8-3'!$B$17 -> 2900 | G15: =+G5*'Tables 8-2, 8-3'!$B$18 -> 0 | H15: =+H5*'Tables 8-2, 8-3'!$B$24 -> 0 | I15: =I5*'Tables 8-2, 8-3'!$B$16 -> 20500
A16: 2 | B16: =+'Tables 8-2, 8-3'!$B$19*Sheet2!B6 -> 0 | C16: =+C6*'Tables 8-2, 8-3'!$B$20 -> 0 | D16: =+D6*'Tables 8-2, 8-3'!$B$22*8*20 -> 32800 | E16: =+E6*'Tables 8-2, 8-3'!$B$23 -> 0 | F16: =+F6*'Tables 8-2, 8-3'!$B$17 -> 1000 | G16: =+G6*'Tables 8-2, 8-3'!$B$18 -> 0 | H16: =+H6*'Tables 8-2, 8-3'!$B$24 -> 0 | I16: =I6*'Tables 8-2, 8-3'!$B$16 -> 20500
A17: 3 | B17: =+'Tables 8-2, 8-3'!$B$19*Sheet2!B7 -> 0 | C17: =+C7*'Tables 8-2, 8-3'!$B$20 -> 0 | D17: =+D7*'Tables 8-2, 8-3'!$B$22*8*20 -> 43200 | E17: =+E7*'Tables 8-2, 8-3'!$B$23 -> 0 | F17: =+F7*'Tables 8-2, 8-3'!$B$17 -> 0 | G17: =+G7*'Tables 8-2, 8-3'!$B$18 -> 0 | H17: =+H7*'Tables 8-2, 8-3'!$B$24 -> 0 | I17: =I7*'Tables 8-2, 8-3'!$B$16 -> 27000
A18: 4 | B18: =+'Tables 8-2, 8-3'!$B$19*Sheet2!B8 -> 0 | C18: =+C8*'Tables 8-2, 8-3'!$B$20 -> 0 | D18: =+D8*'Tables 8-2, 8-3'!$B$22*8*20 -> 43200 | E18: =+E8*'Tables 8-2, 8-3'!$B$23 -> 0 | F18: =+F8*'Tables 8-2, 8-3'!$B$17 -> 0 | G18: =+G8*'Tables 8-2, 8-3'!$B$18 -> 2500 | H18: =+H8*'Tables 8-2, 8-3'!$B$24 -> 18000 | I18: =I8*'Tables 8-2, 8-3'!$B$16 -> 27000
A19: 5 | B19: =+'Tables 8-2, 8-3'!$B$19*Sheet2!B9 -> 0 | C19: =+C9*'Tables 8-2, 8-3'!$B$20 -> 0 | D19: =+D9*'Tables 8-2, 8-3'!$B$22*8*20 -> 43200 | E19: =+E9*'Tables 8-2, 8-3'!$B$23 -> 0 | F19: =+F9*'Tables 8-2, 8-3'!$B$17 -> 0 | G19: =+G9*'Tables 8-2, 8-3'!$B$18 -> 0 | H19: =+H9*'Tables 8-2, 8-3'!$B$24 -> 0 | I19: =I9*'Tables 8-2, 8-3'!$B$16 -> 27000
A20: 6 | B20: =+'Tables 8-2, 8-3'!$B$19*Sheet2!B10 -> 0 | C20: =+C10*'Tables 8-2, 8-3'!$B$20 -> 0 | D20: =+D10*'Tables 8-2, 8-3'!$B$22*8*20 -> 43200 | E20: =+E10*'Tables 8-2, 8-3'!B23 -> 0 | F20: =+F10*'Tables 8-2, 8-3'!$B$17 -> 1000 | G20: =+G10*'Tables 8-2, 8-3'!$B$18 -> 0 | H20: =+H10*'Tables 8-2, 8-3'!$B$24 -> 0 | I20: =I10*'Tables 8-2, 8-3'!$B$16 -> 27000
A22: Total Cost = | C22: =+SUM(B15:I20) -> 427175
A24: Total Revenue = | C24: =SUM(J5:J10)*31 -> 496000

Sheet Sheet4
